Cogmind - Beta 13 @@@ ROGUE MODE // 2024.04.25 @ 18:49:33 Player: Wesmed Result: Self-destructed Performance ------------- Evolutions (2) 1000 Regions Visited (3) 600 Robots Destroyed (56) 280 Value Destroyed (1681) 1681 Prototype IDs (2) 40 Alien Tech Used (0) 0 Bonus (2) 2 TOTAL SCORE: 3603 Bonus ------- High Alert Combat Kills 2 Cogmind --------- Core Integrity 124/550 Matter 270/300 Energy 100/100 System Corruption 5% Temperature Cool (0) Movement Walking (190) Ox1 Location -8/Materials Parts ------- > --- POWER (1) -------- (None) > --- PROPULSION (3) --- Improved Carbon-fiber Leg > --- UTILITY (5) ------ Large Storage Unit Visual Processing Unit > --- WEAPON (2) ------- Pulse Rifle > --- INVENTORY (15) --- Improved Ion Engine Light Deuterium Engine Light Nuclear Core Aluminum Leg Cooling System Improved Sensor Array Terrain Scan Processor Recoil Stabilizer Recoil Stabilizer Particle Charger Reactive Plating Heavy Missile Launcher Improved Datajack Heavy Flail Peak State ------------ > --- POWER ------------ Nuclear Core > --- PROPULSION ------- Aluminum Leg Aluminum Leg Carbon-fiber Leg > --- UTILITY ---------- Large Storage Unit Structural Scanner Visual Processing Unit Improved Terrain Scanner System Shield > --- WEAPON ----------- Field Laser Heavy Flail > --- INVENTORY -------- Improved Ion Engine Light Deuterium Engine Light Nuclear Core Cooling System Improved Sensor Array Terrain Scan Processor Recoil Stabilizer Recoil Stabilizer Particle Charger Reactive Plating Shock Rifle Shotgun Flak Cannon Rocket Launcher Improved Datajack [Rating: 28] Favorites ----------- Power Improved Ion Engine Engine Improved Ion Engine Power Core Nuclear Core Propulsion Aluminum Leg Leg Aluminum Leg Wheel Wheel Utility Visual Processing Unit Device Improved Terrain Scanner Storage Large Storage Unit Processor Visual Processing Unit Hackware System Shield Protection Light Armor Plating Weapon Shotgun Energy Gun Improved Medium Laser Ballistic Gun Shotgun Ballistic Cannon Flak Cannon Impact Weapon Heavy Flail Slashing Weapon Mining Claw Build | -11 -10 -9 -8 ------- Run | Yrd Mat Mat Mat Slots Evolved 4 | . . 2 2 Power . | . . . . Propulsion 1 | . . 1 . Utility 3 | . . 1 2 Weapon . | . . . . Parts Attached 68 | 7 3 19 39 Power 4 | . . 2 2 Engine 2 | . . 2 . Core 2 | . . . 2 Reactor . | . . . . Propulsion 31 | 3 1 7 20 Treads . | . . . . Leg 17 | . . 5 12 Wheel 14 | 3 1 2 8 Hover . | . . . . Flight . | . . . . Utility 15 | 2 . 5 8 Device 7 | 1 . 2 4 Storage 4 | 1 . 2 1 Processor 1 | . . 1 . Hackware 1 | . . . 1 Protection 2 | . . . 2 Artifact . | . . . . Weapon 18 | 2 2 5 9 Energy Gun 9 | 2 . 2 5 Energy Cannon . | . . . . Ballistic Gun 6 | . 1 3 2 Ballistic Cannon 1 | . . . 1 Launcher . | . . . . Special Weapon . | . . . . Impact Weapon 1 | . . . 1 Slashing Weapon 1 | . 1 . . Piercing Weapon . | . . . . Special Melee Weapon . | . . . . Unidentified Prototypes 2 | . . 1 1 Parts Lost 21 | . . 3 18 Power 1 | . . . 1 Propulsion 9 | . . 2 7 Utility 6 | . . 1 5 Weapon 5 | . . . 5 Highest Loss Streak 8 | . . 2 8 To Critical Strikes . | . . . . Average Slot Usage (%) 89 | . 85 94 86 Engine 4 | . . 9 2 Core 3 | . . . 6 Leg 20 | . . 28 17 Wheel 6 | . 28 3 6 Device 9 | . 14 6 11 Storage 11 | . 14 15 9 Processor 8 | . . 8 9 Hackware 2 | . . . 4 Protection 1 | . . . 2 Energy Gun 10 | . 16 11 8 Ballistic Gun 7 | . 10 10 5 Ballistic Cannon 1 | . . . 2 Naked Turns . | . . . . Heaviest Build 53 | 9 9 43 53 Greatest Support 36 | 26 20 30 36 Greatest Overweight (x) 9 | 1 . 1 9 Average Overweight (x) . | . . . . Largest Inventory Capacity 15 | 8 8 15 15 Average Capacity 12 | 7 8 11 15 Most Carried 15 | 6 8 15 15 Average Carried 12 | 2 7 10 14 Final Capacity 15 | 8 8 15 15 Final Carried 15 | 6 8 15 14 Class Distribution -------------------- 74% | Scavenger-Mutant 25% | Mutant Dominant Class ---------------- Mutant | -10/Materials Scavenger-Mutant | -9/Materials Scavenger-Mutant | -8/Materials Resources | -11 -10 -9 -8 ----------- Run | Yrd Mat Mat Mat Matter Collected 1285 | 222 . 367 696 Remotely . | . . . . Salvage Created 1922 | 64 . 740 1118 Parts 120 | 10 . 44 66 Haulers Intercepted 2 | . . 2 . Recyclers Shooed 2 | 1 . 1 . Parts Field Recycled . | . . . . Retrieved Matter . | . . . . Parts Self-Destructed . | . . . . Prevented . | . . . . Kills | -11 -10 -9 -8 ------- Run | Yrd Mat Mat Mat Combat Hostiles Destroyed 43 | . . 14 29 Melee 1 | . . 1 . Guns 32 | . . 13 19 Cannons 10 | . . . 10 Classes Destroyed 9 | 2 . 4 3 Worker 5 | 2 . . 3 Builder 3 | . . 2 1 Tunneler 3 | 2 . . 1 Hauler 2 | . . 2 . Swarmer 8 | . . . 8 Grunt 22 | . . 10 12 Brawler 1 | . . . 1 Sentry 10 | . . 4 6 Specialist 2 | . . . 2 Best Kill Streak 5 | 3 . 5 5 Combat Bots Only 5 | . . 4 5 Max Kills in Single Turn 1 | 1 . 1 1 Gunslinging . | . . . . Exploded . | . . . . Melee 1 | . . 1 . Uniques/NPCs Destroyed . | . . . . Combat | -11 -10 -9 -8 -------- Run | Yrd Mat Mat Mat Hostile Shots Fired 266 | . 16 59 191 Missed 53 | . 5 14 34 Damage Taken 2898 | . 122 629 2147 Core 587 | . . 161 426 Absorbed by Shields . | . . . . Core Remaining (%) 86 | 100 100 59 . Volleys Fired 157 | 18 . 42 97 Largest 2 | 1 . 2 2 Hottest 109 | 40 . 79 109 Shots Fired 283 | 18 . 84 181 Gun 255 | 18 . 84 153 Cannon 28 | . . . 28 Launcher . | . . . . Special . | . . . . Kinetic 128 | . . 42 86 Thermal 153 | 18 . 42 93 Explosive . | . . . . Electromagnetic 2 | . . . 2 Robot Hit Streak 16 | 7 . 12 16 Robot Miss Streak 5 | 2 . 3 5 Penetration Max . | . . . . Secondary Targets 2 | . . 1 1 Max Gunslinging Chain 1 | . . 1 1 Shots Hit Robots 206 | 14 . 60 132 Core Hits 119 | 5 . 31 83 Critical Kills 1 | . . . 1 Critical Parts Destroyed . | . . . . Critical Strikes 8 | . . 2 6 Burn 7 | . . 2 5 Destroy 1 | . . . 1 Melee Attacks 19 | . 4 14 1 Impact 1 | . . . 1 Slashing 18 | . 4 14 . Piercing . | . . . . Sneak Attacks . | . . . . Combat Hostiles . | . . . . Follow-up Attacks . | . . . . Damage Inflicted 3252 | 154 . 890 2208 Guns 2731 | 154 . 834 1743 Cannons 465 | . . . 465 Explosions . | . . . . Melee 50 | . . 50 . Ramming 6 | . . 6 . Kinetic 1569 | . . 390 1179 Thermal 1613 | 154 . 444 1015 Explosive . | . . . . Electromagnetic 14 | . . . 14 Impact . | . . . . Slashing 50 | . . 50 . Piercing . | . . . . Highest Corruption 5 | . . . 5 Average Corruption 5 | . . . 5 Corruption Purged . | . . . . Corruption Blocked . | . . . . Effects 17 | . . . 17 Message Errors 3 | . . . 3 Matter Fused 2 | . . . 2 Heat Flow Errors 3 | . . . 3 Energy Discharges 4 | . . . 4 Data Loss (minor) 3 | . . . 3 Alerts 1 | . . . 1 Weapon Failures 1 | . . . 1 Overload Shots . | . . . . Overflow Damage . | . . . . Projectiles . | . . . . Explosions . | . . . . Melee . | . . . . Knockbacks 9 | . . . 9 Impact . | . . . . Kinetic 9 | . . . 9 Secondary . | . . . . Self-Inflicted Damage . | . . . . Shots . | . . . . Rammed . | . . . . Targets Rammed 1 | . . 1 . Kicked 1 | . . 1 . Crushed . | . . . . Highest Temperature 306 | 15 . 131 306 Average Temperature 68 | 10 . 33 79 Received Heat Transfer 1173 | . 66 342 765 Siege Activations . | . . . . Robots Corrupted . | . . . . Combat Hostiles . | . . . . Parts Fried . | . . . . Impact Corruptions . | . . . . Robots Melted . | . . . . Combat Hostiles . | . . . . Parts Melted 4 | . . 1 3 Heat Transferred 4065 | 350 . 1125 2590 Parts Sabotaged . | . . . . Parts Stolen . | . . . . Parts Stripped . | . . . . Power Chain Reactions . | . . . . Alert | -11 -10 -9 -8 ------- Run | Yrd Mat Mat Mat Peak Influence 421 | 20 44 324 421 Initial 37 | . 13 18 37 Average 152 | 4 20 148 185 Maximum Alert Level 2 | . . 1 2 Low Security (%) 65 | 100 100 68 55 Level 1 33 | . . 31 41 Level 2 1 | . . . 2 Level 3 . | . . . . Level 4 . | . . . . Level 5 . | . . . . High Security . | . . . . Max Security . | . . . . Squads Dispatched 12 | . 4 1 7 Investigation 2 | . 2 . . Extermination . | . . . . Reinforcement 4 | . 2 1 1 Assault . | . . . . Garrison 6 | . . . 6 Intercept . | . . . . Searches Triggered . | . . . . Construction Impeded . | . . . . Haulers Reinforced . | . . . . Active Scanning Responses . | . . . . Cargo Convoy Interrupts . | . . . . Stealth | -11 -10 -9 -8 --------- Run | Yrd Mat Mat Mat Distress Signals 4 | . . 1 3 Communications Jammed . | . . . . Distress Signals . | . . . . Times Spotted 72 | . 9 19 44 Peak Tracking Total 7 | . 6 7 5 Tactical Retreats 4 | . . 1 3 Traps | -11 -10 -9 -8 ------- Run | Yrd Mat Mat Mat Traps Triggered 1 | . 1 . . Indirectly . | . . . . Trap Hack Attempts . | . . . . Triggered . | . . . . Disarmed . | . . . . Reprogrammed . | . . . . Reused . | . . . . Traps Extracted . | . . . . Installed . | . . . . Triggered . | . . . . Machines | -11 -10 -9 -8 ---------- Run | Yrd Mat Mat Mat Machines Disabled 1 | . . . 1 Max in Single Turn 1 | . . . 1 Machines Repaired . | . . . . Machines Dismantled . | . . . . Machines Sabotaged . | . . . . Overloaded Fab Kills . | . . . . Hacking | -11 -10 -9 -8 --------- Run | Yrd Mat Mat Mat Machines Accessed 15 | . 3 4 8 Terminals 11 | . 2 3 6 Fabricators . | . . . . Repair Stations 2 | . 1 1 . Recycling Units 1 | . . . 1 Scanalyzers . | . . . . Garrison Access 1 | . . . 1 Total Hacks 22 | . 5 6 11 Successful 5 | . . 2 3 Failed 17 | . 5 4 8 Catastrophic 5 | . 1 . 4 Database Lockouts . | . . . . Manual 18 | . 3 5 10 Terminals 17 | . 3 5 9 Fabricators . | . . . . Repair Stations 3 | . 2 1 . Recycling Units 1 | . . . 1 Scanalyzers . | . . . . Garrison Access 1 | . . . 1 Terminal Hacks 1 | . . . 1 Part Schematic 1 | . . . 1 Fabricator Hacks . | . . . . Repair Station Hacks . | . . . . Recycling Unit Hacks . | . . . . Scanalyzer . | . . . . Garrison Access Hacks . | . . . . Unauthorized Hacks 4 | . . 2 2 Terminals 2 | . . 2 . Botnet 1 | . . 1 . Operators 1 | . . 1 . Fabricators . | . . . . Repair Stations . | . . . . Recycling Units 1 | . . . 1 Reject 1 | . . . 1 Scanalyzers . | . . . . Garrison Access 1 | . . . 1 Watchers 1 | . . . 1 Data Cores Recovered . | . . . . Used . | . . . . Hacking Detections 13 | . 3 4 6 Full Trace Events 1 | . 1 . . Feedback Events . | . . . . Feedback Blocked . | . . . . Robot Schematics Acquired . | . . . . Robots Built . | . . . . Authchips . | . . . . Time . | . . . . Total Robot Build Rating . | . . . . Part Schematics Acquired 1 | . . . 1 Parts Built . | . . . . Authchips . | . . . . Time . | . . . . Total Part Build Rating . | . . . . Parts Repaired . | . . . . Time . | . . . . Parts Recycled . | . . . . Recycled Matter . | . . . . Retrieved Matter . | . . . . Retrieved Components . | . . . . Parts Scanalyzed . | . . . . Part Schematics Acquired . | . . . . Parts Damaged . | . . . . Bothacking | -11 -10 -9 -8 ------------ Run | Yrd Mat Mat Mat Used RIF Installer . | . . . . Robots Hacked . | . . . . Non-combat . | . . . . Combat . | . . . . Robot Hacks Applied . | . . . . Relay Couplers Released . | . . . . Fabnet Peak Effective % . | . . . . Robots Rewired . | . . . . Allies Hacked . | . . . . Hacks Repelled . | . . . . Allies | -11 -10 -9 -8 -------- Run | Yrd Mat Mat Mat Total Allies . | . . . . Largest Group . | . . . . Highest-Rated Group . | . . . . Highest-Rated Ally . | . . . . Total Orders . | . . . . Ally Attacks . | . . . . Total Damage . | . . . . Kills . | . . . . Allies Corrupted . | . . . . Allies Melted . | . . . . Intel | -11 -10 -9 -8 ------- Run | Yrd Mat Mat Mat Robot Analysis Total . | . . . . Derelict Logs Recovered . | . . . . Drone Launches . | . . . . Drone Recoveries . | . . . . Exploration | -11 -10 -9 -8 ------------- Run | Yrd Mat Mat Mat Turns Passed 2836 | 159 181 953 1543 Spaces Moved 1655 | 121 199 518 817 Core 5 | 3 . . 2 Treads . | . . . . Legs 945 | . . 457 488 Wheels 705 | 118 199 61 327 Hover . | . . . . Flight . | . . . . Fastest Speed 50 | 50 80 80 86 Average Speed 130 | 87 80 141 143 Slowest Speed 500 | 100 80 190 500 Overloaded Moves . | . . . . Propulsion Burnouts . | . . . . Robots Hopped . | . . . . Cave-ins Triggered 1 | . . 1 . Exploration Rate (%) 38 | 7 44 41 60 Regions Visited 3 Branch Regions . Pre-discovered Areas . | . . . . Known Exits Taken . | . . . . Unknown Exits Taken 3 | 1 1 1 . Scrap Searched . | . . . . Spaces Dug 7 | . 1 5 1 Terrain Destroyed 7 | . 1 5 1 Melee 7 | . 1 5 1 Projectile . | . . . . AOE . | . . . . Terrain Rammed . | . . . . Walls Destroyed . | . . . . Machines Disabled . | . . . . Actions | -11 -10 -9 -8 --------- Run | Yrd Mat Mat Mat Total 2011 | 152 213 630 1016 Wait 23 | . 1 4 18 Move 1652 | 120 198 517 817 Hop . | . . . . Pick Up 36 | 6 3 15 12 Fast Attach 33 | 6 2 7 18 Attach 12 | . . 2 10 Detach 6 | . 1 2 3 Swap 23 | 1 1 10 11 Drop 49 | 1 3 16 29 Fire 157 | 18 . 42 97 Melee 19 | . 4 14 1 Ram . | . . . . Kick 1 | . . 1 . Crush . | . . . . Escape Stasis . | . . . . Rewire . | . . . . Trap . | . . . . Miscellaneous . | . . . . Route ------- -11/Scrapyard -10/Materials -9/Materials (discovered 2 exits: *Mat / [*Min]) -8/Materials History --------- Turn | Location | Event 8 | -11/Scrapyard | Discovered new exit (range 16) 160 | -11/Scrapyard | Entered Materials 310 | -10/Materials | Build established: Mutant 317 | -10/Materials | Discovered new exit (range 11) 341 | -10/Materials | Entered another Materials area 341 | -9/Materials | Evolved 2 slots: Propulsion x1, Utility x1 387 | -9/Materials | Crushed by falling debris 633 | -9/Materials | Discovered new exit (range 6) 710 | -9/Materials | Build established: Scavenger-Mutant 1284 | -9/Materials | Discovered new exit (range 6) 1294 | -9/Materials | Entered another Materials area 1294 | -8/Materials | Evolved 2 slots: Utility x2 2252 | -8/Materials | Garrison activated, responded to threat 2359 | -8/Materials | Core integrity fell below 50% 2552 | -8/Materials | Garrison activated, responded to threat 2755 | -8/Materials | Lost 8 parts (1p3n2u2w) 2837 | -8/Materials | Self-destructed Last Messages --------------- 02764_ K-01 Serf collects debris. 02765_ System corrupted: Energy discharge (-23). 02767_ K-01 Serf collects debris. 02783_ S-10 Pest destroyed. 02783_ K-01 Serf collects debris. 02789_ Flak Cannon destroyed. 02791_ Material Processor disabled. 02793_ S-10 Pest destroyed. 02797_ A-02 Transporter suffers critical hit (Burn). 02801_ K-01 Serf cleans the Material Processor. 02810_ A-02 Transporter heat damages Weight Redist. System. 02811_ Acquired 8 matter. 02813_ Acquired 12 matter. 02816_ A-02 Transporter heat short circuits Ion Engine. 02817_ K-01 Serf cleans the Material Processor. 02824_ Acquired 12 matter. 02824_ R-06 Scavenger collects Flight Unit. 02824_ K-01 Serf collects debris. Map ----- +----------------------------------------------------+ | ????#?????????????#??????? ?"????#?# #?# | | ??????????????#?????#????????"????## ####### | | ???????????????????????#???? ???#?# #?#?# T | | ???????#??#?????########?#??? ???# #???# | | #???????????????# ##??##???????### ###???# = | | ??#?????######### ########??#?#??# ##????### | | ????????# + #???????# ##?#??#?? | | ????????# # ###### #?###???#% #??#?#??? | | ?????#??# # ##?#?# ######### ##???#??? | | ??????#?########### ###??### # T # ##????## | | ????#??????########+##?##?## # w #% T #???#??? | | ?????????#?# #??#### # "" +%"" #?#????? | | ??#????????# ] #?## + """ #% #??????? | | ????????#??# """ ##?# # """%# #?#####? | | ???????????# """ =##?# # ### ###?# ]]#? | | ???????????# """ " " #### ########?# ##?##] ]#? | | ??????????## "G" #### ## ## ##?## ==## | | ????#??????# """ #### ## """ # #### ==## | | ??????###### / ## """ + !!## | | ??? ? ###########+### ##/##+## """ # !!## | | ????? # ## # ###### | | ????? + ## ?# #???## | | ????? #### ######### #???## | | T"" #### ######### ###### | | ####+####### r + | | ! % %@ # | | k r + | | " ### a #### | | " #####+###### """ " " #?## | | " + ## """"" """"" #?#? | | ######## ## """"" """"" #### | | ?????? ######## ## """"" """"" #### | | ????????### + ## """ """ | | ????#????## ############## #####^ | | ?????????## ##### # ##?## | | ?????????## ##?????? ## ## ##?## | | ?????? #### ##### ? #### ##?## | | ???????####+#####???? ## ###### #### ##?## | | ???????## ##? ?? ### ##???# #?## ##?## | | ??????? # "" ## ??? ### ##??## #?## ##?## | | ??????? #* """ ##???# ## ##????+#?## ##?## | | ??????? # R" ##??? ## # ? ????## ###### | | ???## ## """ ##? ## # ??????## ##+###### | | ??? ## ## ####### ### # ??? ??## # ] ! # | | ?#?### #####+####### # # ?? ? ??## # ! !! + | | #??## = # # ? ?????## # !! # | | ???## w !% + #### #/####### | | ???## * ##+###########+# ####### | | ???####+####+####### # ## !# ##?##### | | ??? #! ##### ## """ ##=[ T%# ##### | +----------------------------------------------------+ Best States ------------- Heat Dissipation 64 Energy Generation 14 Energy Capacity 265 Matter Stores 300 Matter Capacity 300 Sight Range 18 Terrain Scan Range 16 Terrain Scan Density 10 Armor Coverage 150 Evasion (%) 55 Defensive Hacking 10 Item Schematics ----------------- Arm. Wheel | -8/Materials | Hacked Robot Schematics ------------------ None Fabricated ------------ Nothing Alien Tech Used ----------------- None Achievements -------------- True Hacker Challenges ------------ None Game ------ Seed AnalysisMediumBattery Manual? 0 Play Time 00:41:49 Cumulative 20.9 hours Start 2024.04.25 @ 16:39:02 End 2024.04.25 @ 18:49:33 Sessions 1 Manual Loads 0 Difficulty Rogue Special Mode None Game No. 23 Rogue 15 Adventurer 8 Explorer 0 Win Type - Total 0 Types 0/0/0/0/0/0/0/0/0 Lore% 26 Gallery% 31 Achievement% 24 Wizard Run 0 Options --------- Layout 1 ASCII 0 Keyboard 0 Movement Arrows Keybinds 0 Fullscreen 1 Font 16/SmallcapsGlow Map View 55x38 Zoom Use 0% Tactical HUD 1 Map Filters NONE Filters NONE Steam 1 RUN: 35574689-4d07-4ea7-b4aa-b5bba91192cd